bitfinex/quotes_ETHUSD_20250815
["timestamp","ask_amount","ask_price","bid_price","bid_amount"]
[1755269734510,11.43655555,4494.0,4493.9,0.0008]
[1755269734712,11.87513635,4494.0,4493.9,0.0008]
[1755269734937,13.36178766,4494.0,4493.9,0.0008]
[1755269735312,12.45968766,4494.0,4493.9,0.0008]
[1755269735511,4.0,4494.0,4493.9,0.0008]
[1755269735811,6.22518914,4494.0,4493.9,0.0008]
[1755269736042,7.12728914,4494.0,4493.9,0.0008]
[1755269736652,4.9021,4494.0,4493.9,0.0008]
[1755269736852,4.0,4494.0,4493.9,0.0008]
[1755269737259,6.22518914,4494.0,4493.9,0.0008]
[1755269737444,7.98871513,4494.0,4493.9,0.0008]
[1755269738476,4.46168148,4494.0,4493.9,0.0008]
[1755269738624,4.0,4494.0,4493.9,0.0008]
[1755269739030,4.0,4494.0,4493.9,2.22603865]
[1755269739770,4.266,4494.6,4493.9,0.0008]
[1755269740139,4.266,4494.6,4493.9,2.22603218]
[1755269740471,2.22469612,4495.0,4494.0,2.22515082]
[1755269740644,2.22469612,4495.0,4494.0,2.22514412]
[1755269740849,2.22469612,4495.0,4493.9,2.22603051]
[1755269740850,0.44277989,4495.0,4493.9,2.22603051]
[1755269741186,2.22474543,4494.9,4493.9,0.0008]
[1755269741339,2.22474543,4494.9,4493.9,2.2260314]
[1755269741534,2.22474543,4494.9,4494.0,2.22516857]
[1755269741732,0.44277989,4495.0,4494.1,2.22513962]
[1755269741969,0.02226641,4494.9,4493.9,0.0008]
[1755269742181,0.94076641,4494.9,4493.9,0.0008]
[1755269742344,0.40704903,4494.8,4493.9,0.0008]
[1755269742554,4.247,4494.7,4493.9,0.0008]
[1755269742744,4.247,4494.7,4494.1,2.22513239]
[1755269742938,0.1112,4494.6,4494.0,2.33636617]
[1755269743136,0.1112,4494.6,4494.1,2.22593206]
[1755269743382,0.1112,4494.6,4494.1,0.0008]
[1755269743544,0.5429,4494.6,4494.1,0.0008]
[1755269744150,4.0,4494.2,4494.1,0.0008]
[1755269744344,4.46314822,4494.2,4494.1,0.0008]
[1755269744583,11.37959011,4494.2,4494.1,0.0008]
[1755269744759,11.84273833,4494.2,4494.1,0.0008]
[1755269745176,9.61764822,4494.2,4494.1,0.0008]
[1755269745482,10.46109011,4494.2,4494.1,0.0008]
[1755269745850,8.236,4494.2,4494.1,0.0008]
[1755269746047,10.46109011,4494.2,4494.1,0.0008]
[1755269746273,11.37959011,4494.2,4494.1,0.0008]
[1755269746491,4.0,4494.2,4494.1,0.0008]
[1755269746998,4.226,4494.5,4494.1,0.0008]
[1755269747899,4.224,4494.4,4494.1,0.0008]
[1755269748418,8.05313963,4495.8,4494.1,0.0008]
[1755269748419,4.213,4495.5,4494.2,0.9255]
[1755269748712,2.22449615,4495.4,4494.4,2.22494268]
[1755269748916,4.213,4495.5,4494.4,2.22494268]
[1755269748917,2.22455097,4495.3,4494.4,2.22494268]
[1755269749119,2.24683152,4495.3,4494.1,2.22589677]
[1755269749270,2.22470128,4495.0,4494.1,2.22589677]
[1755269749466,2.22487982,4494.7,4494.1,0.0008]
[1755269749690,2.22484712,4494.7,4494.1,0.0008]
[1755269749893,6.43275657,4494.9,4494.1,0.0008]
[1755269750069,0.9185,4494.6,4494.1,0.0008]
[1755269750268,0.38520108,4494.5,4494.1,0.0008]
[1755269750604,2.22509011,4494.2,4494.1,0.0008]
[1755269751105,7.34549221,4494.4,4494.1,0.0008]
[1755269751106,5.1205,4494.4,4494.1,0.0008]
[1755269751405,3.14359011,4494.2,4494.1,0.0008]
[1755269751785,3.16585652,4494.2,4494.1,0.0008]
[1755269751994,2.80388529,4495.0,4494.1,0.0008]
[1755269752216,2.22509011,4494.2,4494.1,0.0008]
[1755269752513,10.44135652,4494.2,4494.1,0.0008]
[1755269752678,11.36921755,4494.2,4494.1,0.0008]
[1755269753207,2.22543674,4493.5,4493.4,0.001]
[1755269753411,6.99070315,4493.5,4493.4,0.001]
[1755269753572,11.80337094,4493.5,4493.4,0.001]
[1755269753773,12.29017094,4493.5,4493.4,0.001]
[1755269753980,11.8268435,4493.5,4493.4,0.001]
[1755269754314,12.3697435,4493.5,4493.4,0.001]
[1755269754689,12.9197435,4493.5,4493.4,0.001]
[1755269754895,13.38313795,4493.5,4493.4,1e-08]
[1755269756324,11.15770121,4493.5,4491.8,0.001]
[1755269756527,2.22622943,4491.9,4491.8,0.001]
[1755269756710,6.50842943,4491.9,4491.8,0.001]
[1755269757040,7.42692943,4491.9,4491.8,0.001]
[1755269757385,7.42692943,4491.9,4489.6,0.001]
[1755269757386,2.22667557,4491.0,4489.6,0.001]
[1755269757589,6.41794198,4491.0,4489.6,0.001]
[1755269757891,5.95195432,4491.0,4489.6,0.001]
[1755269758090,2.22677473,4490.8,4489.6,0.001]
[1755269758308,2.22712189,4490.1,4489.6,0.001]
[1755269758626,6.4183883,4490.1,4489.6,0.001]
[1755269758810,6.39612189,4490.1,4489.6,0.001]
[1755269759018,6.22712189,4490.1,4489.6,0.001]
[1755269759408,11.31362189,4490.1,4489.6,0.001]
[1755269759608,13.21768866,4490.1,4489.6,0.001]
[1755269760232,13.21768866,4490.1,4487.5,0.4303]
[1755269760233,2.22732031,4489.7,4487.9,2.22821269]
[1755269760436,4.173,4489.6,4488.1,2.22811434]
[1755269760640,4.19526641,4489.5,4488.2,0.5381782]
[1755269760852,4.174,4489.4,4488.2,0.5381782]
[1755269761002,0.02226641,4489.3,4487.5,2.22841225]
[1755269761197,0.9185,4489.8,4487.4,0.003]
[1755269761198,4.175,4489.2,4487.6,0.9255]
[1755269761394,8.173,4489.1,4487.7,0.4303]
[1755269761603,2.22766763,4489.0,4488.0,2.228163]
[1755269761803,1.26282259,4489.0,4488.1,2.2280907]
[1755269762122,1.26282259,4489.0,4487.4,0.003]
[1755269762443,4.0,4488.8,4487.5,0.9255]
[1755269762749,4.167,4489.5,4488.3,2.22797722]
[1755269762948,4.167,4489.4,4488.2,2.22805091]
[1755269763241,4.167,4489.4,4488.7,2.22780965]
[1755269763442,4.167,4489.4,4488.1,0.9255]
[1755269763745,2.22666846,4491.1,4488.1,0.81057633]
[1755269763959,4.18726641,4490.7,4488.2,0.9255]
[1755269764141,4.18726641,4490.7,4489.0,2.22764238]
[1755269764344,4.18726641,4490.7,4487.5,3.0]
[1755269764345,0.9185,4490.6,4487.4,0.003]
[1755269764541,4.0,4489.0,4487.4,0.003]
[1755269764742,4.171,4488.9,4487.5,0.4303]
[1755269764915,8.17,4489.0,4487.6,0.4952]
[1755269765277,8.17,4489.0,4487.8,2.22826329]
[1755269765455,8.17,4489.0,4487.9,0.31537633]
[1755269765626,8.17,4489.0,4487.5,0.4303]
[1755269766017,4.0,4489.0,4488.9,2.22771725]
[1755269766216,0.46189664,4490.6,4488.9,0.9428]
[1755269766428,0.46189664,4490.6,4488.5,2.22790943]
[1755269766429,4.176,4491.0,4489.0,0.9428]
[1755269766629,4.176,4491.0,4490.3,2.22701115]
[1755269766861,4.0,4490.4,4489.8,2.22726749]
[1755269767022,0.02226641,4490.3,4489.6,2.22736931]
[1755269767354,4.0,4490.4,4489.5,0.1112]
[1755269767355,0.1112,4490.1,4489.5,0.1112]
[1755269767758,0.1112,4490.1,4489.6,0.23386624]
[1755269768062,0.1112,4490.1,4489.8,2.22724227]
[1755269768230,0.1112,4490.1,4489.7,2.22731246]
[1755269768433,0.1112,4490.1,4489.5,0.1112]
[1755269768622,0.02226641,4490.4,4488.7,0.4432]
[1755269768827,0.1112,4489.7,4489.0,2.33885862]
[1755269769080,4.2762,4489.7,4489.0,2.33886154]
[1755269769285,4.2762,4489.7,4488.1,2.22811113]
[1755269769286,4.165,4489.7,4487.8,0.4996]
[1755269769488,4.164,4489.6,4487.8,0.4996]
[1755269769691,0.1112,4488.6,4488.0,0.1112]
[1755269769895,2.22804566,4488.3,4487.6,0.1112]
[1755269770047,0.1112,4488.2,4487.6,0.1112]
[1755269770459,2.33926948,4488.2,4487.6,0.1112]
[1755269770664,2.22742259,4489.5,4487.2,0.003]
[1755269770665,2.22754512,4489.3,4487.2,0.003]
[1755269770877,0.1112,4488.0,4487.3,0.1112]
[1755269771185,0.1112,4488.0,4487.4,0.4462]
[1755269771483,0.4426,4488.5,4487.4,0.003]
[1755269771646,0.1112,4487.6,4487.4,0.003]
[1755269772471,4.157,4488.2,4487.4,0.003]
[1755269772674,2.39767215,4488.8,4487.4,0.003]
[1755269772870,2.22841225,4487.5,4487.4,0.003]
[1755269773072,6.38341225,4487.5,4487.4,0.003]
[1755269773382,11.30161225,4487.5,4487.4,0.003]
[1755269773581,11.30761225,4487.5,4487.4,0.003]
[1755269773784,0.55,4487.3,4483.6,2.23031728]
[1755269774109,0.55,4487.1,4482.4,0.0893]
[1755269774390,2.22936408,4485.6,4484.6,2.22984896]
[1755269774595,4.0,4487.0,4483.9,18.26801532]
[1755269774747,4.171,4486.9,4484.4,2.22995272]
[1755269774953,4.171,4486.9,4484.6,3.0]
[1755269774954,6.39971586,4486.9,4484.6,3.0]
[1755269775262,4.171,4486.9,4484.5,0.80045288]
[1755269775573,4.171,4486.9,4484.2,0.52223679]
[1755269775574,0.55,4486.7,4484.2,0.52223679]
[1755269775784,2.22940818,4485.5,4484.2,0.52223679]
[1755269776094,2.2290134,4486.3,4485.3,2.2295036]
[1755269776256,4.169,4486.7,4484.7,0.9428]
[1755269776451,4.169,4486.7,4484.7,0.4996]
[1755269776682,0.4426,4486.6,4484.3,0.4432]
[1755269776889,0.9182,4486.6,4484.2,0.52223679]
[1755269777065,0.4426,4486.5,4484.5,2.22987212]
[1755269777278,2.22959775,4485.2,4483.9,2.23019579]
[1755269777607,4.169,4485.1,4484.2,2.23004723]
[1755269777758,4.169,4485.1,4484.6,0.003]
[1755269777954,0.4426,4486.1,4484.6,0.003]
[1755269778154,6.83574666,4486.1,4484.6,0.003]
[1755269778397,0.9182,4486.0,4484.6,0.003]
[1755269778567,2.22925676,4485.8,4484.6,0.003]
[1755269778756,0.4426,4485.9,4484.6,0.003]
[1755269779090,2.2296542,4485.1,4484.6,0.22628942]
[1755269779291,2.2296542,4485.1,4484.6,0.003]
[1755269779292,4.6206,4485.0,4484.6,0.003]
[1755269779455,0.4426,4485.0,4484.6,0.003]
[1755269779657,4.18,4484.9,4484.6,0.003]
[1755269780700,2.22953593,4485.3,4484.6,2.23285193]
[1755269780701,4.178,4485.3,4484.6,2.23285193]
[1755269780862,4.178,4485.3,4484.6,0.44928484]
[1755269781061,4.178,4485.3,4484.6,0.003]
[1755269781594,4.17,4485.7,4485.0,2.22962518]
[1755269781798,4.17,4485.7,4485.4,2.22944574]
[1755269782097,4.17,4485.7,4484.8,2.22970525]
[1755269782298,4.17,4485.7,4484.6,0.003]
[1755269782661,2.3409111,4484.9,4484.6,0.003]
[1755269782962,2.22980355,4484.7,4484.6,0.003]
[1755269783386,2.67240355,4484.7,4484.6,0.003]
[1755269783894,3.14800355,4484.7,4484.6,0.003]
[1755269784096,3.89072391,4484.7,4484.6,0.003]
[1755269784306,4.34836502,4484.7,4484.6,0.003]
[1755269784594,6.94960355,4484.7,4484.6,0.003]
[1755269784959,2.23025112,4483.8,4483.7,0.01687968]
[1755269785208,6.50645112,4483.8,4483.7,0.01687968]
[1755269786103,6.94905112,4483.8,4483.7,0.01687968]
[1755269786300,2.78405112,4483.8,4483.7,0.01687968]
[1755269786598,6.50645112,4483.8,4483.7,0.01687968]
[1755269787098,4.2762,4483.8,4483.7,0.01687968]
[1755269787601,4.7188,4483.8,4483.7,0.01687968]
[1755269787818,4.162,4483.9,4483.7,0.01687968]
[1755269788095,4.162,4483.9,4483.7,0.01787968]
[1755269788296,0.4426,4484.5,4483.7,0.01787968]
[1755269788470,0.4426,4484.9,4483.7,0.01787968]
[1755269788677,4.166,4484.8,4483.7,0.01787968]
[1755269789014,0.1112,4485.0,4484.5,2.22990299]
[1755269789232,0.1112,4485.0,4484.6,2.22984839]
[1755269789544,4.0,4484.7,4484.6,2.22985327]
[1755269789831,4.164,4485.5,4484.9,0.1112]
[1755269790036,0.1112,4485.2,4484.6,0.1112]
[1755269790333,0.4756,4486.4,4484.8,2.22970543]
[1755269790334,2.2292699,4485.8,4484.8,2.22970543]
[1755269790523,0.1112,4485.2,4484.8,0.44595835]
[1755269790696,4.161,4486.5,4485.3,2.22945888]
[1755269790883,6.38993181,4486.5,4485.3,2.22947286]
[1755269791087,2.68739198,4486.4,4485.3,2.22950407]
[1755269791289,0.45842214,4486.4,4484.6,0.4432]
[1755269791525,0.4426,4486.9,4484.7,0.4996]
[1755269791734,0.45842214,4487.3,4484.7,0.4996]
[1755269791939,2.22856748,4487.2,4486.2,2.2290086]
[1755269792101,0.4426,4487.4,4485.5,0.4432]
[1755269792524,0.002,4487.5,4485.6,0.4996]
[1755269792709,0.002,4487.5,4486.5,2.22890894]
[1755269792910,0.002,4487.5,4485.7,0.4432]
[1755269793133,0.002,4487.5,4485.6,0.4996]
[1755269793134,0.4426,4487.4,4485.6,0.4996]
[1755269793332,6.90546563,4487.3,4486.0,2.22911223]
[1755269793539,0.002,4487.5,4487.4,2.22846191]
[1755269794036,0.002,4487.5,4487.4,3.17126191]
[1755269794237,0.002,4487.5,4486.7,3.0]
[1755269794238,0.002,4487.5,4486.8,0.4432]
[1755269794410,0.002,4487.5,4485.5,2.22935671]
[1755269794737,2.22851157,4487.3,4484.2,0.4432]
[1755269795034,0.55,4487.0,4483.8,0.4996]
[1755269795364,2.22951905,4485.3,4483.8,0.4996]
[1755269795498,2.22951905,4485.3,4483.9,2.23020098]
[1755269795499,2.22973532,4484.9,4483.9,2.23020098]
[1755269795699,2.68834727,4485.1,4483.7,0.01787968]
[1755269795934,0.4426,4484.8,4483.7,0.01787968]
[1755269796336,4.178,4484.7,4483.7,0.01787968]
[1755269796757,4.178,4484.7,4483.9,2.23019562]
[1755269797063,4.178,4484.7,4484.0,2.23014575]
[1755269797361,4.178,4484.7,4483.8,2.2302442]
[1755269797555,4.63674258,4484.7,4483.8,2.2302442]
[1755269797743,4.63674258,4484.7,4483.9,2.23017036]
[1755269797948,4.178,4484.7,4483.9,2.23017036]
[1755269798160,6.40780896,4484.7,4483.7,0.01787968]
[1755269798359,2.22975665,4484.8,4483.9,2.23020084]
[1755269798677,4.1742,4484.6,4483.8,2.23024163]
[1755269798839,4.63486707,4484.6,4483.8,2.23024163]
[1755269799043,4.63486707,4484.6,4483.9,2.2301943]
[1755269799244,4.1742,4484.6,4483.7,0.01787968]
[1755269799437,0.46066707,4484.5,4483.7,0.01787968]
[1755269799638,0.46066707,4484.4,4483.7,0.01787968]
[1755269799837,2.23015412,4484.0,4483.7,0.01787968]
[1755269800052,0.46066707,4484.3,4483.7,0.01787968]
[1755269800053,2.23025112,4483.8,4483.7,0.01787968]
[1755269800257,0.46066707,4483.8,4483.7,0.01787968]
[1755269800571,0.57186707,4483.8,4483.7,0.01787968]
[1755269801278,2.31737008,4483.8,4483.7,0.01787968]
[1755269801478,8.10772152,4483.8,4483.7,0.01787968]
[1755269801772,0.46066707,4483.8,4483.7,0.01787968]
[1755269801938,6.86591819,4483.8,4483.7,0.01787968]
[1755269802133,7.29551819,4483.8,4483.7,0.01867968]
[1755269802339,8.94305463,4483.8,4483.7,0.01867968]
[1755269802540,4.63386707,4483.8,4483.7,0.01867968]
[1755269802894,0.45986707,4483.8,4483.7,0.01867968]
[1755269803055,4.63286707,4483.8,4483.7,0.01867968]
[1755269803585,0.45986707,4483.8,4483.7,0.01867968]
[1755269803789,4.63086707,4483.8,4483.7,0.01867968]
[1755269804778,0.45986707,4483.8,4483.7,0.01867968]
[1755269805154,2.22999544,4484.4,4483.7,0.01867968]
[1755269805464,0.76968101,4484.9,4484.7,2.22979201]
[1755269805788,4.0,4484.8,4484.7,2.45278275]
[1755269805938,4.0,4484.8,4484.7,0.2229792]
[1755269806143,4.0,4484.8,4483.7,1.08667968]
[1755269806576,0.76968101,4485.4,4483.7,1.08667968]
[1755269806774,0.4304,4485.3,4483.7,0.01867968]
[1755269807187,2.22965513,4485.0,4484.2,2.23001642]
[1755269807391,0.4304,4485.3,4483.7,0.01867968]
[1755269807688,0.76968101,4485.5,4483.8,0.5937]
[1755269807986,4.165,4485.5,4483.9,0.4743]
[1755269808276,4.165,4485.5,4484.1,2.23010191]
[1755269808437,2.22982902,4484.7,4483.7,0.01867968]
[1755269808641,2.22981332,4484.7,4483.9,2.23017972]
[1755269808838,4.16,4484.8,4483.7,0.01867968]
[1755269809051,4.5904,4484.8,4483.7,0.01867968]
[1755269809276,2.23009341,4484.2,4483.7,0.01867968]
[1755269809480,0.4304,4484.7,4483.7,0.01867968]
[1755269809683,2.99928917,4485.1,4483.7,0.01867968]
[1755269809684,0.4304,4484.6,4483.7,0.01867968]
[1755269809857,4.5934,4484.6,4483.7,0.01867968]
[1755269810180,6.82326278,4484.6,4483.7,0.01867968]
[1755269810481,0.4304,4484.6,4483.9,2.23020106]
[1755269810685,6.39291342,4484.5,4483.7,2.248936]
[1755269810978,4.163,4484.5,4483.8,2.23024214]
[1755269811146,4.163,4484.5,4483.7,0.01867968]
[1755269811147,4.163,4484.5,4483.9,2.23019795]
[1755269811347,0.1112,4484.1,4483.8,2.23024739]
[1755269811584,0.1112,4484.1,4483.9,2.23019354]
[1755269811883,0.1095348,4484.1,4483.9,2.23019354]
[1755269812072,0.1095348,4484.1,4484.0,2.23015165]
[1755269812271,0.4304,4485.2,4484.1,2.23010191]
[1755269812272,0.1112,4484.7,4484.1,2.23010191]
[1755269812583,0.1112,4484.7,4484.3,2.22995627]
[1755269812751,0.1112,4484.7,4484.0,0.1112]
[1755269812948,0.1112,4484.7,4484.6,2.22985327]
[1755269813185,0.1112,4485.1,4484.5,0.1112]
[1755269813490,0.4304,4485.0,4483.7,0.01867968]
[1755269813646,0.4304,4485.0,4483.7,2.24897486]
[1755269813852,0.618,4484.9,4483.7,0.01867968]
[1755269814052,2.2299909,4484.4,4483.7,0.01867968]
[1755269814275,4.5814,4484.8,4483.7,0.01867968]
[1755269814477,2.22993896,4484.5,4483.7,0.01867968]
[1755269814678,4.149,4484.4,4483.8,2.23024779]
[1755269814890,2.22991144,4484.5,4483.7,2.24897106]
[1755269815090,2.23009332,4484.2,4483.7,0.01867968]
[1755269815285,4.5784,4484.4,4483.7,0.01867968]
[1755269815609,0.4304,4484.1,4483.7,0.01867968]
[1755269815806,4.153,4484.0,4483.7,0.01867968]
[1755269816108,4.152,4484.0,4483.7,0.01867968]
[1755269816406,2.23025112,4483.8,4483.7,0.01867968]
[1755269816986,2.66065112,4483.8,4483.7,0.01867968]
[1755269817392,6.38325112,4483.8,4483.7,0.01867968]
[1755269817799,5.974,4485.3,4483.7,0.01867968]
[1755269818110,2.23025112,4483.8,4483.7,0.01867968]
[1755269818513,1.92539947,4487.2,4483.7,0.01867968]
[1755269818514,0.4304,4485.0,4483.7,0.01867968]
[1755269818716,2.22957651,4485.2,4483.8,0.02230251]
[1755269819012,4.146,4485.1,4483.7,0.61237968]
[1755269819178,2.22974584,4484.9,4483.7,2.8426396]
[1755269819522,2.22935616,4485.6,4483.8,0.28436396]
[1755269819820,2.22960098,4485.2,4484.2,2.23000523]
[1755269819979,2.22956637,4485.2,4484.2,2.23000523]
[1755269820179,4.147,4485.3,4484.2,0.44601982]
[1755269820389,0.4304,4485.5,4483.8,0.75866396]
[1755269820590,0.4304,4485.5,4483.9,0.59162456]
[1755269820591,4.5724,4485.5,4483.9,0.59162456]
[1755269820789,4.5724,4485.5,4484.5,2.22989326]
[1755269821014,4.5724,4485.5,4484.2,2.23003781]
[1755269821015,2.22967628,4485.0,4484.2,2.23003781]
[1755269821315,2.22958907,4485.2,4484.4,2.22992894]
[1755269821481,2.22961724,4485.1,4484.3,2.22999581]
[1755269821685,2.22961724,4485.1,4483.8,0.28436396]
[1755269821686,1.0484,4485.0,4483.7,0.01867968]
[1755269821887,2.23025112,4483.8,4483.7,0.01867968]
[1755269822120,6.36725112,4483.8,4483.7,0.01867968]
[1755269822342,6.79865112,4483.8,4483.7,0.01867968]
[1755269822801,7.41665112,4483.8,4483.7,0.01867968]
[1755269822988,8.38133198,4483.8,4483.7,0.01867968]
[1755269823418,11.41465112,4483.8,4483.7,0.01867968]
[1755269824020,11.52585112,4483.8,4483.7,0.01867968]
[1755269824927,11.52585112,4483.8,4481.9,0.1112]
[1755269824928,0.55,4483.6,4481.9,0.1112]
[1755269825099,5.2014,4483.5,4480.2,0.4743]
[1755269825297,0.55,4483.3,4479.5,0.02232392]
[1755269825528,0.55,4483.3,4479.3,0.4743]
[1755269825529,1.31968101,4483.1,4479.3,0.4743]
[1755269825692,1.31968101,4482.9,4479.6,2.23234217]
[1755269825892,2.23118066,4482.0,4479.1,0.12676251]
[1755269826120,0.55,4481.6,4479.1,0.01698427]
[1755269826332,2.23190983,4480.5,4479.3,2.23246122]
[1755269826533,4.153,4480.4,4479.2,2.23254152]
[1755269826743,4.5663,4480.3,4479.1,0.01698427]
[1755269827249,0.4679,4480.7,4479.1,0.01698427]
[1755269827452,4.151,4480.2,4479.5,2.23237723]
[1755269827733,4.151,4480.2,4479.1,0.01698427]
[1755269827734,0.4679,4480.1,4479.1,0.01698427]
[1755269828088,0.6409,4480.0,4479.1,0.01698427]
[1755269828400,2.23249597,4479.3,4479.1,0.01698427]
[1755269828603,4.154,4479.7,4479.1,0.01698427]
[1755269829349,4.154,4479.7,4479.1,2.24956812]
[1755269829646,0.4679,4480.9,4479.1,0.01698427]
[1755269829924,0.6409,4480.8,4479.1,0.01698427]
[1755269830090,0.6409,4481.7,4479.2,0.48802541]
[1755269830293,4.6249,4481.6,4479.7,2.23225011]
[1755269830490,0.4679,4481.6,4479.6,0.4657]
[1755269830692,0.4679,4481.6,4481.1,2.23159229]
[1755269830993,4.6249,4482.7,4481.8,2.2312316]
[1755269831224,4.6249,4482.7,4481.3,2.23148048]
[1755269831225,2.23091677,4482.5,4481.3,2.23148048]
[1755269831550,0.4679,4483.3,4481.2,0.4657]
[1755269831994,0.4679,4483.3,4481.4,3.0]
[1755269832192,0.4679,4483.3,4481.2,2.69723791]
[1755269832510,0.4679,4483.9,4481.7,3.0]
[1755269832716,4.155,4484.3,4482.0,2.2311468]
[1755269832973,4.155,4484.3,4482.4,2.2309477]
[1755269833091,2.22911689,4486.1,4482.1,4.6207]
[1755269833092,0.4679,4485.5,4483.5,2.230374]
[1755269833412,0.4679,4485.5,4482.6,2.23084816]
[1755269833413,2.69729023,4485.6,4483.2,4.154]
[1755269833727,2.229419,4485.5,4483.7,2.23028132]
[1755269833927,2.229419,4485.5,4482.7,1.0637]
[1755269833928,4.6209,4484.9,4483.4,2.23044578]
[1755269834088,4.6209,4484.9,4483.3,2.23045029]
[1755269834294,0.4679,4484.8,4482.9,2.23068756]
[1755269834630,0.6409,4484.7,4482.5,2.23087576]
[1755269834828,1.0179,4484.6,4481.9,2.23119659]
[1755269835040,0.1112,4483.0,4482.3,0.1112]
[1755269835398,0.1112,4483.0,4482.9,2.23069887]
[1755269835892,0.1112,4483.6,4482.9,0.1112]
[1755269836091,0.1112,4483.6,4483.4,2.2304485]
[1755269836296,0.1112,4483.6,4482.9,0.1112]
[1755269836297,0.1112,4483.6,4483.5,2.23040035]
[1755269836496,4.142,4485.1,4482.9,2.25300585]
[1755269836744,0.1112,4484.1,4483.6,0.1112]
[1755269836919,0.4679,4485.3,4483.7,0.598]
[1755269837138,0.4679,4485.3,4483.1,4.16130599]
[1755269837139,0.1112,4484.6,4484.0,0.1112]
[1755269837356,0.4679,4484.5,4482.3,0.4657]
[1755269837497,0.1112,4483.6,4483.2,2.23050431]
[1755269837696,0.1112,4483.6,4482.9,0.1112]
[1755269838000,2.22959022,4485.2,4482.9,0.4657]
[1755269838001,4.139,4485.1,4482.9,0.4657]
[1755269838205,0.1112,4484.4,4483.5,0.1112]
[1755269838411,4.139,4485.1,4483.1,2.23056306]
[1755269838412,2.22985327,4484.6,4483.1,2.23056306]
[1755269838708,0.1112,4484.1,4484.0,2.23015165]
[1755269838920,2.22971154,4484.9,4483.8,2.23025112]
[1755269839104,4.139,4485.1,4483.8,2.23025112]
[1755269839105,0.1112,4484.4,4483.9,2.23020138]
[1755269839307,0.1112,4484.4,4483.8,0.1112]
[1755269839533,0.4679,4486.2,4484.9,2.22970411]
[1755269839762,0.002,4487.5,4484.9,2.22970411]
[1755269839763,0.1112,4485.4,4484.9,2.22970411]
[1755269839930,0.1112,4485.9,4484.9,2.34090411]
[1755269840241,0.1112,4485.9,4484.9,3.40460411]
[1755269840679,2.22900944,4486.3,4484.9,3.40460411]
[1755269840897,0.0012,4485.0,4484.9,2.93890411]
[1755269841038,0.0012,4485.0,4484.9,2.34090411]
[1755269841237,0.002,4486.4,4485.9,2.22920707]
[1755269841467,0.002,4486.4,4485.9,2.25149914]
[1755269841636,1e-08,4486.0,4485.9,3.29290707]
[1755269841853,1e-08,4486.0,4485.9,6.40410707]
[1755269842054,1e-08,4486.0,4485.9,5.93840707]
[1755269842261,1e-08,4486.0,4485.9,6.40410707]
[1755269842500,1e-08,4486.4,4486.1,2.22908485]
[1755269842807,0.002,4486.8,4486.7,2.22880959]
[1755269842808,1e-08,4486.8,4486.7,2.22880959]
[1755269842964,1e-08,4486.8,4486.7,9.35380959]
[1755269843158,0.002,4490.2,4487.8,2.2282385]
[1755269843357,0.1112,4489.9,4488.3,2.22801506]
[1755269843555,0.1112,4489.9,4489.5,2.22741953]
[1755269843753,0.1112,4489.9,4489.2,0.1112]
[1755269843962,0.4679,4490.1,4488.9,4.124]
[1755269844162,0.1112,4490.0,4489.3,0.1112]
[1755269844379,0.002,4490.2,4489.5,2.22741953]
[1755269844908,0.002,4490.2,4489.5,3.29111953]
[1755269845283,0.002,4490.2,4489.5,2.22741953]
[1755269845671,0.1112,4490.4,4489.5,0.1112]
[1755269845870,0.4679,4490.3,4489.5,0.1112]
[1755269846180,2.77596961,4492.5,4489.5,0.1112]
[1755269846181,0.57604935,4494.2,4490.4,0.55]
[1755269846491,1e-08,4493.3,4493.2,2.22558532]
[1755269846672,1e-08,4493.3,4493.2,10.45554117]
[1755269846876,1e-08,4493.3,4493.2,6.97990836]
[1755269847127,1e-08,4493.3,4493.2,10.43228532]
[1755269847308,0.4679,4495.6,4495.0,2.22469217]
[1755269847611,0.4679,4495.6,4494.5,4.141]
[1755269847795,0.4679,4496.4,4494.6,4.141]
[1755269847996,0.4679,4496.4,4494.7,4.139]
[1755269848201,0.4679,4496.4,4495.1,2.2246343]
[1755269848370,0.4679,4496.4,4494.9,2.22473706]
[1755269848371,2.22612575,4496.2,4494.9,2.22473706]
[1755269848570,0.4679,4495.9,4494.6,0.6409]
[1755269848778,0.4679,4495.9,4494.6,2.86578547]
[1755269848977,0.002,4496.2,4494.7,0.02224842]
[1755269849330,0.002,4496.2,4494.6,0.6409]
[1755269849331,0.4679,4496.1,4494.6,0.6409]
[1755269849504,2.22426042,4495.9,4494.6,2.86578955]
[1755269849701,2.2242789,4495.9,4494.6,0.6409]
[1755269849892,2.2242789,4495.9,4494.8,2.22474544]
[1755269850094,2.22445524,4495.5,4494.1,6.36811651]
[1755269850324,0.4679,4495.8,4494.1,4.143]
[1755269850490,0.4679,4495.8,4494.1,2.22510629]
[1755269850691,2.69221164,4495.8,4494.7,2.22483862]
[1755269850890,0.4679,4495.8,4494.5,4.138]
[1755269851123,0.002,4496.2,4494.5,4.138]
[1755269851294,0.002,4496.2,4494.7,3.0]
[1755269851497,0.002,4496.2,4494.8,0.02224793]
[1755269851696,0.002,4496.2,4494.9,0.598]
[1755269851902,0.002,4496.2,4495.0,0.48794694]
[1755269852223,0.002,4496.2,4496.1,2.22414981]
[1755269852538,0.002,4496.7,4496.1,2.22414981]
[1755269852539,1e-08,4496.7,4496.1,9.35714981]
[1755269852743,1e-08,4496.7,4496.4,2.22398606]
[1755269852943,1e-08,4496.7,4496.6,2.2239025]
[1755269853226,0.002,4497.1,4496.6,4.137]
[1755269853528,0.002,4497.1,4496.6,0.16555877]
[1755269853696,0.002,4497.1,4495.7,0.598]
[1755269853697,0.002,4497.1,4496.4,4.136]
[1755269853892,0.002,4497.1,4496.4,6.35996756]
[1755269854226,0.002,4497.1,4495.9,4.135]
[1755269854528,0.002,4497.1,4496.0,4.133]
[1755269854730,0.002,4497.1,4495.7,0.63661207]
[1755269854731,0.002,4497.1,4495.7,0.17091207]